bitfinex/quotes_SOLUSD_20260220
["timestamp","ask_amount","ask_price","bid_price","bid_amount"]
[1771610305490,4.32104669,84.594,84.544,4.26669323]
[1771610306004,4.32104669,84.589,84.544,4.26669323]
[1771610306606,4.32104669,84.589,84.545,41.39807203]
[1771610307001,4.32104669,84.589,84.545,45.66476526]
[1771610307191,4.32104669,84.589,84.546,4.26669323]
[1771610307506,4.32104669,84.587,84.545,11.82802058]
[1771610307889,4.32104669,84.569,84.54,11.82858795]
[1771610308703,4.32104669,84.579,84.537,0.28432314]
[1771610308887,4.32104669,84.579,84.538,4.26669323]
[1771610310707,4.32104669,84.579,84.54,4.26669323]
[1771610311706,11.82340561,84.578,84.54,4.26669323]
[1771610311893,4.32104669,84.58,84.54,4.26669323]
[1771610312290,4.32104669,84.59,84.542,4.26669323]
[1771610312500,4.32104669,84.59,84.548,4.26669323]
[1771610313515,11.82186809,84.589,84.55,4.26669323]
[1771610313915,4.32104669,84.588,84.55,4.26669323]
[1771610315613,4.32104669,84.588,84.552,4.26669323]
[1771610316120,4.32104669,84.586,84.552,4.26669323]
[1771610317609,4.36210283,84.569,84.522,4.48322616]
[1771610317913,4.36210283,84.569,84.528,4.48322616]
[1771610319501,4.36210283,84.567,84.53,4.48322616]
[1771610320498,11.8248037,84.568,84.529,11.83025943]
[1771610320499,4.36210283,84.559,84.529,11.83025943]
[1771610320701,4.36210283,84.549,84.511,4.48322616]
[1771610321696,4.36210283,84.547,84.511,4.48322616]
[1771610322325,4.36210283,84.547,84.512,41.41423702]
[1771610322519,4.36210283,84.559,84.514,0.42648471]
[1771610322720,4.36210283,84.559,84.519,4.48322616]
[1771610323723,4.36210283,84.557,84.521,4.48322616]
[1771610326418,4.36210283,84.557,84.523,4.48322616]
[1771610326722,11.82517958,84.566,84.523,4.48322616]
[1771610327022,47.2893876,84.586,84.522,41.4093372]
[1771610327023,4.36210283,84.577,84.527,4.48322616]
[1771610327823,4.36210283,84.577,84.531,4.48322616]
[1771610328032,4.36210283,84.577,84.522,100.56553321]
[1771610328033,4.36210283,84.569,84.533,4.48322616]
[1771610328327,4.36210283,84.559,84.523,4.48322616]
[1771610328534,4.36210283,84.557,84.517,4.48322616]
[1771610328724,4.36210283,84.557,84.519,4.48322616]
[1771610330921,4.36210283,84.557,84.521,4.48322616]
[1771610331223,4.36210283,84.588,84.527,4.48322616]
[1771610331422,4.36210283,84.588,84.539,4.48322616]
[1771610331613,4.36210283,84.588,84.548,0.14216157]
[1771610331813,4.36210283,84.588,84.549,4.48322616]
[1771610333129,11.82206341,84.588,84.55,41.39562388]
[1771610333434,4.36210283,84.587,84.55,41.39562388]
[1771610333740,4.36210283,84.587,84.551,4.48322616]
[1771610334228,4.36210283,84.579,84.55,11.82732111]
[1771610336615,4.36210283,84.578,84.543,4.48322616]
[1771610337131,4.36210283,84.559,84.526,11.83067931]
[1771610337333,4.36210283,84.559,84.527,4.48322616]
[1771610337832,4.36210283,84.569,84.529,4.48322616]
[1771610338419,15.88370846,84.58,84.536,0.42648471]
[1771610338622,4.36210283,84.579,84.541,4.48322616]
[1771610339629,4.36210283,84.588,84.547,4.48322616]
[1771610339828,4.36210283,84.588,84.549,4.48322616]
[1771610341330,11.52160563,84.59,84.55,16.31054727]
[1771610341331,4.36210283,84.586,84.55,16.31054727]
[1771610341524,4.36210283,84.586,84.551,4.48322616]
[1771610342251,11.82155782,84.592,84.551,4.48322616]
[1771610342429,59.08753301,84.621,84.55,41.39562388]
[1771610342430,4.36210283,84.609,84.557,4.48322616]
[1771610342632,0.1,84.61,84.568,0.28432314]
[1771610342940,0.1,84.61,84.56,5.50302345]
[1771610342941,0.1,84.61,84.588,0.14216157]
[1771610343124,0.1,84.61,84.589,4.48322616]
[1771610343326,0.1,84.61,84.59,11.82172833]
[1771610344339,0.1,84.61,84.59,45.85927533]
[1771610344522,0.1,84.61,84.591,4.48322616]
[1771610345627,0.1,84.61,84.592,11.82144883]
[1771610345917,0.1,84.61,84.593,4.48322616]
[1771610347646,0.1,84.61,84.594,11.82116935]
[1771610348351,0.1,84.61,84.593,4.48322616]
[1771610348645,0.1,84.61,84.594,11.82116935]
[1771610349844,4.42754953,84.609,84.571,4.2542461]
[1771610350048,4.42754953,84.609,84.575,16.0779493]
[1771610350742,0.1,84.61,84.577,0.42648471]
[1771610350946,0.1,84.61,84.588,4.2542461]
[1771610352545,0.1,84.61,84.589,11.82186809]
[1771610353025,0.1,84.61,84.59,4.2542461]
[1771610354637,0.1,84.61,84.591,11.82158858]
[1771610354837,0.1,84.61,84.592,4.2542461]
[1771610355244,4.42754953,84.628,84.598,4.2542461]
[1771610355450,4.42754953,84.638,84.607,0.42648471]
[1771610355659,4.42754953,84.629,84.592,4.2542461]
[1771610355949,4.42754953,84.629,84.591,45.62980614]
[1771610356257,4.42754953,84.629,84.592,4.2542461]
[1771610356645,4.42754953,84.627,84.593,11.82130909]
[1771610356845,4.42754953,84.627,84.594,4.2542461]
[1771610357351,4.42754953,84.627,84.593,11.82130909]
[1771610357552,4.42754953,84.619,84.593,11.82130909]
[1771610358259,4.42754953,84.599,84.535,4.2542461]
[1771610358762,4.42754953,84.587,84.538,4.68073081]
[1771610359755,4.42754953,84.579,84.538,4.2542461]
[1771610359944,4.42754953,84.579,84.547,0.42648471]
[1771610360145,4.42754953,84.579,84.548,4.2542461]
[1771610360954,4.42754953,84.614,84.566,4.2542461]
[1771610361146,4.42754953,84.614,84.568,4.2542461]
[1771610361456,4.42754953,84.614,84.578,4.2542461]
[1771610362656,4.42754953,84.612,84.579,11.82326582]
[1771610363152,4.42754953,84.612,84.579,16.07751192]
[1771610363346,4.42754953,84.612,84.579,11.82326582]
[1771610363654,11.81851488,84.613,84.564,29.56311276]
[1771610363655,4.42754953,84.609,84.572,4.2542461]
[1771610365855,4.42754953,84.607,84.574,4.2542461]
[1771610366058,4.42754953,84.607,84.573,41.38436615]
[1771610366059,4.42754953,84.607,84.578,4.2542461]
[1771610366853,4.42754953,84.607,84.575,10.3]
[1771610367052,4.42754953,84.607,84.563,29.5635083]
[1771610367258,4.42754953,84.607,84.564,11.82536303]
[1771610367655,4.42754953,84.599,84.564,11.82536303]
[1771610368069,4.42754953,84.589,84.554,11.82676159]
[1771610368644,4.42754953,84.589,84.521,47.32547751]
[1771610368645,4.42754953,84.589,84.542,4.2542461]
[1771610368845,41.37213645,84.598,84.516,4.2542461]
[1771610368846,4.42754953,84.569,84.516,4.2542461]
[1771610369262,4.42754953,84.559,84.513,41.41374699]
[1771610369455,4.42754953,84.549,84.513,11.83249914]
[1771610370055,4.42754953,84.547,84.509,4.2542461]
[1771610370670,4.42754953,84.569,84.517,4.2542461]
[1771610370846,4.42754953,84.569,84.529,4.2542461]
[1771610371054,4.42754953,84.569,84.539,4.2542461]
[1771610371450,4.42754953,84.585,84.549,4.2542461]
[1771610371761,4.42754953,84.591,84.549,4.2542461]
[1771610372166,4.42754953,84.588,84.55,11.82732111]
[1771610372364,4.42754953,84.588,84.55,41.39562388]
[1771610372776,4.42754953,84.588,84.55,11.82732111]
[1771610375061,4.42754953,84.586,84.551,4.2542461]
[1771610375864,4.42754953,84.597,84.557,4.2542461]
[1771610376077,4.42754953,84.597,84.559,4.2542461]
[1771610377378,4.25282288,84.595,84.561,4.12392124]
[1771610377763,11.82088987,84.596,84.56,11.82592242]
[1771610377764,4.25282288,84.589,84.56,11.82592242]
[1771610377957,4.25282288,84.579,84.56,11.82592242]
[1771610378869,4.25282288,84.579,84.549,33.69249061]
[1771610378870,4.25282288,84.579,84.55,11.82732111]
[1771610379566,4.25282288,84.579,84.55,15.95124235]
[1771610379763,4.25282288,84.579,84.551,4.12392124]
[1771610380976,4.25282288,84.579,84.55,11.82732111]
[1771610381284,4.25282288,84.569,84.536,0.14216157]
[1771610381572,4.25282288,84.569,84.537,0.28432314]
[1771610381777,4.25282288,84.569,84.537,0.14216157]
[1771610382162,4.25282288,84.567,84.538,14.42392124]
[1771610382368,4.25282288,84.567,84.539,10.3]
[1771610382867,4.25282288,84.584,84.548,4.12392124]
[1771610383092,4.25282288,84.584,84.55,4.12392124]
[1771610387579,4.25282288,84.579,84.543,11.82830039]
[1771610388569,4.25282288,84.577,84.543,11.82830039]
[1771610389080,4.25282288,84.577,84.543,15.95222163]
[1771610389285,11.82293785,84.582,84.544,4.12392124]
[1771610389464,4.25282288,84.584,84.548,4.12392124]
[1771610390178,29.55067443,84.601,84.543,11.82830039]
[1771610390179,4.25282288,84.6,84.558,4.12392124]
[1771610390775,4.25282288,84.598,84.56,4.12392124]
[1771610391268,4.25282288,84.598,84.559,41.39121796]
[1771610392068,4.25282288,84.598,84.56,4.12392124]
[1771610392667,4.25282288,84.606,84.568,4.12392124]
[1771610392885,4.25282288,84.604,84.569,11.82466388]
[1771610396772,4.25282288,84.602,84.57,10.3]
[1771610396971,4.25282288,84.602,84.57,14.42392124]
[1771610397590,4.25282288,84.602,84.57,10.3]
[1771610397988,4.25282288,84.579,84.542,4.12392124]
[1771610400170,4.25282288,84.577,84.544,4.12392124]
[1771610400972,4.25282288,84.577,84.53,4.12392124]
[1771610401184,4.25282288,84.569,84.531,4.12392124]
[1771610401379,11.52061157,84.58,84.535,4.12392124]
[1771610401577,4.25282288,84.587,84.548,0.14216157]
[1771610401777,4.25282288,84.598,84.549,4.12392124]
[1771610402190,4.25282288,84.596,84.551,4.12392124]
[1771610402676,4.25282288,84.596,84.557,4.12392124]
[1771610402875,4.25282288,84.596,84.559,4.12392124]
[1771610404097,4.25282288,84.596,84.55,41.39562388]
[1771610404289,4.25282288,84.596,84.551,4.12392124]
[1771610404476,11.820114,84.602,84.559,4.12392124]
[1771610404675,4.25282288,84.601,84.559,4.12392124]
[1771610404890,4.25282288,84.599,84.559,4.12392124]
[1771610405090,4.25282288,84.589,84.552,41.3946447]
[1771610405289,4.25282288,84.569,84.5,4.12392124]
[1771610405490,4.25282288,84.559,84.503,9.91126783]
[1771610405693,4.25282288,84.559,84.517,4.12392124]
[1771610405887,4.25282288,84.559,84.523,4.12392124]
[1771610406290,4.25282288,84.559,84.528,4.12392124]
[1771610406491,4.25282288,84.559,84.529,41.40590802]
[1771610407089,4.13999046,84.549,84.529,11.83025943]
[1771610407297,4.13999046,84.549,84.513,4.46699712]
[1771610408579,4.29954929,84.54,84.514,11.83235913]
[1771610408884,4.22298668,84.529,84.505,11.83361931]
[1771610409084,4.22298668,84.539,84.506,4.46699712]
[1771610409287,4.29954929,84.54,84.506,4.46699712]
[1771610409288,4.29954929,84.53,84.506,4.46699712]
[1771610409482,4.29954929,84.53,84.505,11.83361931]
[1771610409689,4.22298668,84.529,84.505,11.83361931]
[1771610410288,4.22298668,84.529,84.498,16.3015514]
[1771610410882,16.05338607,84.528,84.498,16.3015514]
[1771610411402,4.22298668,84.527,84.498,16.3015514]
[1771610413185,139.97,84.635,84.498,16.3015514]
[1771610413186,165.7,84.772,84.502,4.46699712]
[1771610413508,165.7,84.772,84.498,41.42105336]
[1771610413509,4.29954929,84.64,84.554,4.46699712]
[1771610413699,4.29954929,84.65,84.577,5.50302345]
[1771610413899,11.50399343,84.65,84.598,4.46699712]
[1771610414508,11.81348864,84.649,84.599,41.37164741]
[1771610414707,11.81348864,84.649,84.6,4.46699712]
[1771610414888,41.34721024,84.649,84.6,4.46699712]
[1771610415300,4.22298668,84.648,84.607,0.28432314]
[1771610415611,4.22298668,84.648,84.601,0.42648471]
[1771610415612,4.22298668,84.648,84.608,4.46699712]
[1771610415797,11.81288535,84.654,84.608,4.46699712]
[1771610415993,4.22298668,84.653,84.608,4.46699712]
[1771610416620,4.22298668,84.649,84.599,45.83864453]
[1771610416791,4.22298668,84.649,84.6,4.46699712]
[1771610417713,4.22298668,84.639,84.592,4.46699712]
[1771610418714,4.22298668,84.658,84.608,4.46699712]
[1771610418906,4.22298668,84.649,84.608,4.46699712]
[1771610419100,4.22298668,84.649,84.598,4.46699712]
[1771610419298,4.22298668,84.649,84.607,0.28432314]
[1771610419596,4.22298668,84.649,84.608,4.46699712]
[1771610420710,4.22298668,84.671,84.61,4.89348183]
[1771610420913,29.52586991,84.672,84.609,11.81907362]
[1771610420914,4.22298668,84.649,84.609,11.81907362]
[1771610421112,4.22298668,84.639,84.564,4.46699712]
[1771610421314,11.50399343,84.64,84.561,59.41323599]
[1771610421315,4.22298668,84.629,84.58,4.46699712]
[1771610421503,4.22298668,84.629,84.582,4.46699712]
[1771610422301,4.22298668,84.639,84.588,4.46699712]
[1771610422499,4.22298668,84.639,84.595,0.28432314]
[1771610422697,4.22298668,84.639,84.598,4.46699712]
[1771610423214,11.81502398,84.638,84.6,4.46699712]
[1771610423399,16.03801066,84.638,84.6,4.46699712]
[1771610423599,4.22298668,84.637,84.6,4.46699712]
[1771610423915,11.81502398,84.638,84.58,41.38089401]
[1771610423916,4.22298668,84.619,84.58,41.38089401]
[1771610424214,4.22298668,84.619,84.581,4.46699712]
[1771610424418,4.22298668,84.629,84.581,4.46699712]
[1771610425715,4.22298668,84.629,84.582,0.42648471]
[1771610425902,29.53755996,84.638,84.582,0.42648471]
[1771610425903,11.81555809,84.635,84.589,4.46699712]
[1771610426312,16.03854477,84.635,84.589,4.46699712]
[1771610426709,4.22298668,84.635,84.589,4.46699712]
[1771610426901,4.22298668,84.635,84.582,41.37996263]
[1771610426902,4.22298668,84.698,84.603,4.46699712]
[1771610427102,11.80731565,84.694,84.627,4.60915869]
[1771610427317,4.22298668,84.698,84.636,0.28432314]
[1771610427318,11.80817862,84.688,84.636,0.28432314]
[1771610427508,4.22298668,84.678,84.633,4.46699712]
[1771610427711,4.22298668,84.669,84.633,4.46699712]
[1771610428015,4.22298668,84.667,84.634,11.81558239]
[1771610428217,11.51368413,84.65,84.622,11.81725792]
[1771610428404,4.22298668,84.659,84.622,11.81725792]
[1771610428819,4.22298668,84.659,84.616,11.81798278]
[1771610429515,4.22298668,84.639,84.601,4.46699712]
[1771610429917,11.81502398,84.638,84.601,4.46699712]
[1771610430121,4.22298668,84.629,84.581,4.46699712]
[1771610430504,41.35258394,84.638,84.581,4.46699712]
[1771610430505,4.22298668,84.619,84.581,4.46699712]
[1771610430701,11.51368413,84.61,84.571,4.46699712]
[1771610431210,15.73667081,84.61,84.571,4.46699712]
[1771610431414,4.22298668,84.609,84.571,4.46699712]
[1771610431602,4.22298668,84.599,84.556,4.75132026]
[1771610431804,4.22298668,84.599,84.556,4.46699712]
[1771610432203,11.82061041,84.598,84.558,4.46699712]
[1771610432415,11.819353,84.607,84.558,4.46699712]
[1771610432712,4.22298668,84.606,84.558,4.46699712]
[1771610433126,4.22298668,84.628,84.568,4.46699712]
[1771610433416,4.22298668,84.628,84.578,4.46699712]
[1771610433736,11.81628047,84.629,84.578,4.46699712]
[1771610433949,11.81628047,84.629,84.579,0.28432314]
[1771610434227,11.81516358,84.637,84.59,4.46699712]
[1771610434910,41.35307253,84.637,84.59,4.46699712]
[1771610435227,4.22298668,84.629,84.59,4.46699712]
[1771610435540,4.22298668,84.629,84.519,47.32636164]
[1771610435541,4.22298668,84.619,84.574,11.82382534]
[1771610435749,4.22298668,84.609,84.574,11.82382534]
[1771610435930,4.22298668,84.609,84.57,4.46699712]
[1771610435931,4.22298668,84.599,84.538,4.46699712]
[1771610436236,4.22298668,84.597,84.545,4.46699712]
[1771610436406,4.22298668,84.597,84.549,4.46699712]
[1771610439603,4.42122938,84.595,84.554,0.28432314]
[1771610439808,11.81725792,84.622,84.567,4.3960264]
[1771610440008,29.5436998,84.621,84.569,4.3960264]
[1771610440318,4.42122938,84.62,84.569,4.3960264]
[1771610440517,4.42122938,84.619,84.551,4.3960264]
[1771610440721,29.5436998,84.621,84.55,41.39562388]
[1771610440722,4.42122938,84.609,84.559,4.3960264]
[1771610441811,4.42122938,84.607,84.561,4.3960264]
[1771610442215,4.42122938,84.599,84.543,11.82830039]
[1771610442513,4.42122938,84.559,84.506,4.3960264]
[1771610442713,4.42122938,84.559,84.508,4.3960264]
[1771610442912,11.51368413,84.58,84.514,4.3960264]
[1771610443118,4.42122938,84.58,84.528,4.3960264]
[1771610443320,4.42122938,84.579,84.528,4.3960264]
[1771610443520,4.42122938,84.579,84.53,4.3960264]
[1771610443714,4.42122938,84.598,84.54,4.3960264]
[1771610443932,4.42122938,84.589,84.54,4.3960264]
[1771610444123,4.42122938,84.598,84.54,4.3960264]
[1771610444327,4.42122938,84.598,84.548,4.3960264]
[1771610444733,4.42122938,84.598,84.54,0.14216157]
[1771610444734,4.42122938,84.598,84.558,4.3960264]
[1771610445148,11.81987321,84.604,84.558,4.3960264]
[1771610445436,4.42122938,84.603,84.558,4.3960264]
[1771610445815,4.42122938,84.603,84.55,0.14216157]
[1771610445816,11.82005153,84.602,84.56,4.3960264]
[1771610446017,4.42122938,84.601,84.56,4.3960264]
[1771610446630,4.42122938,84.599,84.555,11.82657004]
[1771610446824,4.42122938,84.599,84.542,0.42648471]
[1771610447030,4.42122938,84.599,84.542,4.82251111]
[1771610447940,11.82061041,84.598,84.544,4.82251111]
[1771610448236,45.79336583,84.598,84.544,4.82251111]
[1771610448444,4.42122938,84.597,84.544,4.82251111]
[1771610450143,4.42122938,84.597,84.543,41.39905136]
[1771610450144,4.42122938,84.595,84.546,4.3960264]
[1771610450815,4.42122938,84.579,84.536,16.22528085]
[1771610451016,4.42122938,84.569,84.518,4.3960264]
[1771610451322,4.42122938,84.559,84.519,4.3960264]
[1771610452255,11.82620213,84.558,84.521,4.3960264]
[1771610452425,45.81293684,84.558,84.521,4.3960264]
[1771610452625,4.42122938,84.557,84.512,11.83262035]
[1771610454329,11.82648185,84.556,84.513,4.3960264]
[1771610454631,11.8248037,84.568,84.529,4.3960264]
[1771610456127,11.8248037,84.568,84.51,4.3960264]
[1771610456128,4.42122938,84.567,84.51,4.3960264]
[1771610456328,4.42122938,84.565,84.518,4.53818797]
[1771610457430,11.82508336,84.566,84.518,4.53818797]
[1771610457634,11.82508336,84.566,84.528,4.3960264]
[1771610457848,11.823825,84.575,84.528,4.3960264]
[1771610458539,16.2449161,84.576,84.533,0.28432314]
[1771610458727,41.0680084,84.59,84.531,0.42648471]
[1771610458728,11.82228737,84.586,84.538,4.3960264]
[1771610458930,11.82088987,84.596,84.548,4.3960264]
[1771610459353,11.8194927,84.606,84.558,4.3960264]
[1771610459651,4.42122938,84.605,84.558,4.3960264]
[1771610460231,4.42122938,84.605,84.529,41.40590802]
[1771610460232,4.42122938,84.589,84.534,4.68034954]
[1771610460434,4.42122938,84.579,84.534,22.12944034]
[1771610460630,4.42122938,84.579,84.535,10.3]
[1771610460849,4.42122938,84.579,84.535,14.6960264]
[1771610461054,4.42122938,84.579,84.536,4.3960264]
[1771610461552,11.82200784,84.588,84.538,4.3960264]
[1771610461757,11.82200784,84.588,84.548,4.3960264]
[1771610462552,11.82144883,84.592,84.55,4.3960264]
[1771610462757,4.42122938,84.591,84.55,4.3960264]
[1771610463648,11.82172833,84.59,84.551,11.82718122]
[1771610463832,41.37604917,84.59,84.553,4.3960264]
[1771610464036,45.79727855,84.59,84.553,4.3960264]
[1771610465243,4.42122938,84.589,84.553,4.3960264]
[1771610465729,11.82200784,84.588,84.554,16.22278799]
[1771610466052,11.82200784,84.588,84.554,4.3960264]
[1771610466771,4.08123703,84.587,84.554,4.3960264]
[1771610466942,4.08123703,84.587,84.541,11.82858021]
[1771610467137,4.0691318,84.579,84.522,15.98872509]
[1771610467338,4.0691318,84.579,84.523,4.15748589]
[1771610467532,4.0691318,84.579,84.529,4.15748589]
[1771610467959,4.0691318,84.577,84.531,4.15748589]
[1771610468160,4.0691318,84.569,84.526,11.83064447]
[1771610468364,4.0691318,84.549,84.494,15.99264578]
[1771610468581,4.0691318,84.539,84.495,4.15748589]
[1771610469463,4.0691318,84.539,84.486,4.15748589]
[1771610469653,4.0691318,84.529,84.486,4.15748589]
[1771610469958,11.51368413,84.53,84.464,4.15748589]
[1771610469959,4.0691318,84.518,84.464,4.15748589]
[1771610470143,11.83090125,84.525,84.464,4.15748589]
[1771610470347,11.83090125,84.525,84.48,4.15748589]
[1771610470551,11.83090125,84.525,84.488,4.15748589]
[1771610471054,15.90003305,84.525,84.488,4.15748589]
[1771610471458,11.83090125,84.525,84.488,4.15748589]
[1771610472557,4.0691318,84.547,84.49,4.15748589]
[1771610472781,4.0691318,84.539,84.489,11.83586028]
[1771610473440,4.0691318,84.529,84.489,11.83586028]
[1771610473762,4.0691318,84.529,84.481,11.83698109]
[1771610474065,4.0691318,84.519,84.482,4.15748589]
[1771610474257,4.0691318,84.519,84.472,15.99568014]
[1771610474568,4.0691318,84.517,84.472,15.99568014]
[1771610475354,11.83179914,84.518,84.477,4.15748589]
[1771610475578,11.8291399,84.537,84.484,0.28432314]
[1771610475768,41.40198965,84.537,84.489,4.15748589]
[1771610476068,4.0691318,84.529,84.489,4.15748589]
[1771610476252,4.0691318,84.529,84.473,4.15748589]
[1771610476450,41.40198965,84.537,84.414,47.38518426]
[1771610476451,4.0691318,84.517,84.475,4.15748589]
[1771610478748,4.0691318,84.515,84.475,4.15748589]
[1771610478948,4.0691318,84.515,84.476,11.8376817]
[1771610479274,11.51368413,84.51,84.475,4.15748589]
[1771610479483,11.51368413,84.51,84.462,4.15748589]
[1771610479765,4.0691318,84.509,84.462,4.15748589]
[1771610480351,41.41227696,84.516,84.468,4.15748589]
[1771610480942,11.51368413,84.53,84.478,4.15748589]
[1771610480943,11.83137918,84.521,84.478,4.15748589]
[1771610482958,29.57634302,84.528,84.48,4.15748589]
[1771610483268,4.0691318,84.527,84.48,4.15748589]
[1771610483866,4.0691318,84.509,84.468,11.98086359]
[1771610484071,4.0691318,84.509,84.467,11.83881931]
[1771610484376,4.0691318,84.509,84.468,4.15748589]
[1771610484552,4.0691318,84.519,84.468,4.15748589]
[1771610484974,4.0691318,84.517,84.47,4.15748589]
[1771610486168,41.41129699,84.518,84.46,0.2]
[1771610486169,4.0691318,84.499,84.46,0.2]
[1771610486653,4.0691318,84.499,84.461,4.15748589]
[1771610486974,4.0691318,84.497,84.462,4.15748589]
[1771610487575,11.83347927,84.506,84.464,4.15748589]
[1771610487788,4.0691318,84.505,84.46,0.2]
[1771610487951,41.41717746,84.506,84.46,0.2]
[1771610487952,4.0691318,84.499,84.46,0.2]
[1771610488145,11.54304913,84.5,84.46,0.2]
[1771610488146,4.0691318,84.489,84.46,0.2]
[1771610488363,4.0691318,84.479,84.46,0.2]
[1771610488651,4.0691318,84.469,84.431,4.15748589]
[1771610488855,4.0691318,84.459,84.423,4.15748589]
[1771610489075,4.0691318,84.468,84.432,4.15748589]
[1771610489470,4.0691318,84.468,84.43,4.35748589]
[1771610490555,4.0691318,84.466,84.43,4.35748589]
[1771610490780,11.83894301,84.467,84.431,4.15748589]
[1771610490965,4.0691318,84.466,84.43,0.2]
[1771610491166,11.83894301,84.467,84.43,0.2]
[1771610491167,4.0691318,84.459,84.43,0.2]
[1771610491869,4.0691318,84.449,84.411,11.84670762]
[1771610492575,15.91073846,84.448,84.411,4.15748589]
[1771610492868,4.0691318,84.447,84.411,4.15748589]
[1771610493068,4.0691318,84.447,84.406,0.28432314]
[1771610493069,15.9091962,84.459,84.413,4.15748589]
[1771610493273,11.83956309,84.463,84.422,0.28432314]
[1771610493464,94.65520236,84.518,84.433,4.15748589]
[1771610493465,15.61218093,84.47,84.433,4.15748589]
[1771610493660,4.0691318,84.469,84.422,4.15748589]
[1771610493860,4.0691318,84.459,84.407,0.14216157]
[1771610494076,4.0691318,84.459,84.413,4.15748589]
[1771610494460,4.0691318,84.459,84.414,4.15748589]
[1771610494975,4.0691318,84.457,84.416,4.15748589]
[1771610495156,4.0691318,84.457,84.416,3.65748589]
[1771610496176,4.0691318,84.457,84.399,11.84848161]
[1771610496365,4.0691318,84.449,84.4,0.14216157]
[1771610496562,4.0691318,84.449,84.4,0.42648471]
[1771610496761,4.0691318,84.447,84.402,0.42648471]
[1771610496969,4.0691318,84.447,84.38,13.99383402]
[1771610496970,4.0691318,84.419,84.34,47.42678723]
[1771610497168,4.0691318,84.419,84.331,47.43182485]
[1771610497169,4.0691318,84.419,84.371,4.10267733]
[1771610497672,4.22092402,84.409,84.371,4.10267733]
[1771610498867,4.22092402,84.407,84.372,11.85227326]
[1771610499279,4.22092402,84.407,84.373,0.14216157]
[1771610499460,4.22092402,84.407,84.373,4.2448389]
[1771610499662,4.22092402,84.407,84.374,0.14216157]
[1771610500169,4.22092402,84.426,84.377,4.10267733]
[1771610500377,4.22092402,84.426,84.372,41.48295642]
[1771610500378,11.84483269,84.425,84.385,4.10267733]
[1771610500958,41.45691441,84.425,84.387,4.10267733]
[1771610501377,11.84483269,84.425,84.394,4.10267733]
[1771610501582,11.84483269,84.425,84.395,0.14216157]
[1771610501971,4.22092402,84.424,84.383,4.52916204]
[1771610502679,11.84483269,84.425,84.383,4.52916204]
[1771610503875,11.84286881,84.439,84.388,4.38700047]
[1771610504082,11.84286881,84.439,84.391,0.28432314]
[1771610504383,11.84286881,84.439,84.387,3.69383402]
[1771610504384,4.22092402,84.438,84.396,4.10267733]
[1771610504587,11.84286881,84.439,84.406,4.10267733]
[1771610504965,4.22092402,84.457,84.41,4.10267733]
[1771610505167,47.13357874,84.53,84.424,4.10267733]
[1771610505168,11.83880286,84.468,84.424,4.10267733]
[1771610505372,11.83880286,84.468,84.426,4.10267733]
[1771610505586,11.83880286,84.468,84.434,4.10267733]
[1771610505886,4.22092402,84.476,84.438,4.10267733]
[1771610505887,11.83782184,84.475,84.438,4.10267733]
[1771610506090,4.22092402,84.469,84.426,4.10267733]
[1771610506383,4.22092402,84.459,84.406,4.10267733]
[1771610506578,4.22092402,84.459,84.415,0.14216157]
[1771610506785,4.22092402,84.459,84.414,4.10267733]
[1771610506786,4.22092402,84.449,84.4,0.14216157]
[1771610506968,4.22092402,84.449,84.402,0.14216157]
[1771610507177,4.22092402,84.449,84.402,4.2448389]
[1771610507487,4.22092402,84.449,84.405,0.14216157]
[1771610507868,151.66660702,84.475,84.398,4.10267733]
[1771610507869,4.22092402,84.437,84.398,4.10267733]
[1771610508078,4.22092402,84.457,84.401,0.28432314]
[1771610508383,4.22092402,84.456,84.416,4.10267733]
[1771610508767,4.22092402,84.456,84.407,0.14216157]
[1771610508768,4.22092402,84.456,84.407,4.10267733]
[1771610508969,4.22092402,84.439,84.398,4.10267733]
[1771610509497,4.22092402,84.429,84.389,4.10267733]
[1771610509690,4.22092402,84.429,84.393,4.10267733]
[1771610509892,4.22092402,84.427,84.394,0.14216157]
[1771610510273,4.22092402,84.427,84.395,4.10267733]
[1771610511384,11.84286881,84.439,84.403,4.10267733]
[1771610511573,11.84235507,84.443,84.41,0.14216157]
[1771610511777,11.84235507,84.443,84.415,4.10267733]
[1771610512396,11.84048498,84.456,84.415,4.10267733]
[1771610513480,4.22092402,84.465,84.417,4.10267733]
[1771610513881,4.22092402,84.459,84.417,4.10267733]
[1771610514188,4.22092402,84.459,84.413,0.28432314]
[1771610514589,4.22092402,84.459,84.416,4.10267733]
[1771610515686,4.22092402,84.457,84.416,15.94875963]
[1771610516387,4.22092402,84.457,84.417,11.84595519]
[1771610516789,4.22092402,84.457,84.418,4.10267733]
[1771610517589,41.44169744,84.456,84.419,11.84567455]
[1771610517791,41.44169744,84.456,84.407,0.14216157]
[1771610517792,4.22092402,84.439,84.398,4.10267733]
[1771610517992,100.64412237,84.456,84.386,4.10267733]
[1771610517993,4.22092402,84.435,84.386,4.10267733]
[1771610518298,4.22092402,84.429,84.386,4.10267733]
[1771610518593,4.22092402,84.449,84.386,4.10267733]
[1771610518792,4.22092402,84.449,84.385,41.47656573]
[1771610518793,4.22092402,84.449,84.402,4.10267733]